bitfinex-derivatives/quotes_ETHF0:USTF0_20250115
["timestamp","ask_amount","ask_price","bid_price","bid_amount"]
[1736961296632,0.59709,3349.4,3349.2,0.59712]
[1736961296830,0.59709,3349.4,3349.3,0.5971]
[1736961297031,1.27449,3349.5,3349.3,0.5971]
[1736961297831,0.5971,3349.4,3349.3,0.5971]
[1736961298023,1.27449,3349.5,3349.3,0.5971]
[1736961298428,1.27449,3349.5,3349.2,0.59712]
[1736961298628,1.27449,3349.5,3349.3,0.59709]
[1736961298922,1.27448,3349.5,3349.4,0.59709]
[1736961299429,0.6774,3349.5,3348.9,1.49292]
[1736961299624,0.6774,3349.5,3348.9,2.78092]
[1736961299831,1.27448,3349.5,3349.3,0.59709]
[1736961300032,0.59709,3349.4,3349.3,0.59709]
[1736961300328,0.6774,3349.5,3349.4,0.59709]
[1736961300525,0.6774,3349.5,3349.4,2.85896333]
[1736961301031,0.6774,3349.5,3349.4,0.59709]
[1736961301429,3.2078,3349.7,3349.6,0.59705]
[1736961301823,3.2078,3349.7,3349.6,1.88405]
[1736961302730,1.27571,3349.9,3349.8,0.59702]
[1736961303234,0.6787,3349.9,3349.6,1.287]
[1736961303428,0.6787,3349.9,3349.7,0.59702]
[1736961303628,0.59702,3349.8,3349.7,0.59702]
[1736961303827,0.59703,3349.7,3349.6,1.88404]
[1736961304335,0.59703,3349.8,3349.7,0.59702]
[1736961305934,0.59703,3349.8,3349.7,0.59703]
[1736961306433,0.6787,3349.9,3349.6,1.287]
[1736961306434,1.27571,3349.9,3349.6,1.287]
[1736961306835,1.27571,3349.9,3349.8,0.59702]
[1736961307535,0.6787,3349.9,3349.8,0.59702]
[1736961307935,1.2757,3349.9,3349.8,0.59702]
[1736961308730,0.6787,3349.9,3349.8,0.59702]
[1736961309036,1.2757,3349.9,3349.8,0.59702]
[1736961310640,0.6787,3349.9,3349.8,0.59702]
[1736961311037,3.21019337,3350.1,3350.0,0.59698]
[1736961311237,0.00239337,3350.1,3350.0,0.59698]
[1736961311534,0.00239337,3350.1,3350.0,2.85885333]
[1736961311741,0.00239337,3350.1,3350.0,46.86665333]
[1736961313729,0.00239337,3350.1,3350.0,47.60215333]
[1736961315337,0.00239337,3350.1,3350.0,6.06665333]
[1736961315531,0.59935337,3350.1,3349.9,0.59699]
[1736961315840,3.21019337,3350.1,3349.6,1.287]
[1736961316137,0.59701,3349.9,3349.7,0.59703]
[1736961316338,0.6759,3349.8,3349.7,0.59703]
[1736961316542,0.6759,3349.8,3349.7,2.85890333]
[1736961317035,0.6759,3349.8,3349.6,1.88403]
[1736961317036,1.27292,3349.8,3349.6,1.88403]
[1736961317342,0.738,3349.7,3349.6,1.88403]
[1736961319434,0.59705,3349.6,3349.4,0.59707]
[1736961319644,1.33505,3349.7,3349.5,1.88407]
[1736961321137,1.33505,3349.7,3349.5,1.88406]
[1736961321443,0.59705,3349.6,3349.5,1.88406]
[1736961322541,0.59705,3349.6,3349.5,1.287]
[1736961324339,0.59705,3349.6,3349.5,1.88407]
[1736961326242,1.33504,3349.7,3349.5,1.88406]
[1736961326438,0.59705,3349.6,3349.5,1.88406]
[1736961327542,0.59705,3349.6,3349.5,1.287]
[1736961329037,2.23063,3349.7,3349.1,3.2078]
[1736961329237,0.59711,3349.3,3349.2,1.88412]
[1736961329536,0.6784,3349.5,3349.2,1.287]
[1736961329742,0.738,3349.7,3349.4,2.26187333]
[1736961329938,0.738,3349.7,3349.6,0.59705]
[1736961330142,1.33503,3349.7,3349.6,0.59705]
[1736961330343,1.33503,3349.7,3349.6,41.39705]
[1736961330539,0.738,3349.7,3349.6,41.39705]
[1736961332641,1.33503,3349.7,3349.6,40.8]
[1736961332848,1.33503,3349.7,3349.6,42.085]
[1736961333050,1.33503,3349.7,3349.1,5.46967333]
[1736961333051,0.738,3349.7,3349.1,5.46967333]
[1736961333242,0.738,3349.7,3349.2,1.285]
[1736961333442,0.5971,3349.3,3349.2,1.285]
[1736961334547,3.9441,3349.5,3348.8,2.26187333]
[1736961334746,0.59723,3348.6,3348.5,4.68959335]
[1736961334942,2.98297333,3349.2,3348.3,4.68959335]
[1736961334943,0.59727,3348.4,3348.3,4.68959335]
[1736961335767,1.31837,3348.4,3348.3,4.68959335]
[1736961336055,0.7211,3348.4,3348.3,0.59728]
[1736961336264,0.7211,3348.4,3348.3,1.88228]
[1736961336453,1.31837,3348.4,3348.3,1.285]
[1736961337545,0.59728,3348.3,3348.2,1.285]
[1736961338754,0.7211,3348.4,3348.2,1.285]
[1736961338959,0.7211,3348.4,3348.3,0.59728]
[1736961339554,0.7211,3348.4,3348.3,41.39728]
[1736961340259,0.6691,3349.0,3348.9,0.59718]
[1736961340555,0.6691,3349.0,3348.5,2.26187333]
[1736961340743,1.26627,3349.0,3348.8,0.59719]
[1736961340950,1.26627,3349.0,3348.9,1.285]
[1736961342745,1.26627,3349.0,3348.5,2.26187333]
[1736961342746,0.59719,3348.8,3348.7,1.285]
[1736961343358,0.59721,3348.7,3348.5,1.285]
[1736961343558,0.59723,3348.6,3348.5,0.1766]
[1736961345962,3.2078,3348.8,3347.9,5.46967333]
[1736961346146,0.59738,3347.9,3347.8,1.285]
[1736961346352,3.2078,3347.9,3347.0,6.95146668]
[1736961346549,0.59748,3347.2,3347.1,0.5975]
[1736961346858,0.5975,3347.2,3347.1,1.285]
[1736961347358,0.59748,3347.2,3347.1,1.285]
[1736961351869,0.5976,3346.6,3346.4,4.14549333]
[1736961352062,0.59761,3346.5,3346.4,1.286]
[1736961353168,1.3819,3346.9,3346.4,1.286]
[1736961353371,0.5976,3346.6,3346.4,1.286]
[1736961353665,0.5976,3346.5,3346.4,1.286]
[1736961354064,0.59762,3346.4,3346.3,40.8]
[1736961354869,3.2078,3346.6,3346.1,1.286]
[1736961355066,2.87578,3346.9,3346.1,1.286]
[1736961355067,1.3819,3346.9,3346.1,1.286]
[1736961355266,1.3819,3346.9,3346.6,0.59758]
[1736961355463,0.711,3346.9,3346.8,0.59755]
[1736961355772,0.59755,3346.8,3346.6,2.85945333]
[1736961355961,0.59757,3346.7,3346.6,2.26187333]
[1736961356168,0.59757,3346.7,3346.6,43.06187333]
[1736961356771,0.59757,3346.7,3346.6,40.8]
[1736961357271,3.80537,3346.7,3346.6,40.8]
[1736961359675,3.80537,3346.7,3346.4,1.286]
[1736961359676,0.5976,3346.5,3346.4,1.286]
[1736961359864,0.7171,3346.6,3346.2,0.59765]
[1736961360061,0.7171,3346.6,3346.3,1.286]
[1736961360259,0.59762,3346.4,3346.3,1.286]
[1736961362067,0.7291,3346.5,3346.3,1.286]
[1736961362367,0.59762,3346.4,3346.3,1.286]
[1736961364468,0.59767,3346.2,3346.0,2.85956333]
[1736961364778,0.7291,3346.5,3345.8,15.2468]
[1736961364779,0.59768,3346.1,3345.8,15.2468]
[1736961365071,0.7291,3346.5,3346.0,2.26187333]
[1736961365374,3.2078,3346.7,3346.6,0.59759]
[1736961365575,3.2078,3346.7,3346.6,4.14446333]
[1736961365969,3.2078,3346.7,3346.6,44.34687333]
[1736961366172,3.80537,3346.7,3346.6,1.285]
[1736961366873,3.80537,3346.7,3346.3,1.285]
[1736961366874,3.2078,3346.7,3346.3,1.285]
[1736961367078,0.59762,3346.4,3346.3,1.285]
[1736961367373,1.49397,3346.6,3345.7,2.26187333]
[1736961367568,0.5977,3346.0,3345.9,1.285]
[1736961367769,0.59767,3346.2,3345.9,1.285]
[1736961367970,0.6914,3346.2,3346.1,0.59768]
[1736961368173,3.2078,3346.7,3346.0,2.26187333]
[1736961368371,3.2078,3346.7,3346.6,0.59759]
[1736961368777,0.7332,3346.8,3346.7,0.59757]
[1736961368967,3.2078,3347.1,3347.0,0.59752]
[1736961369280,0.59754,3346.9,3346.7,0.59757]
[1736961369579,3.2078,3347.1,3346.6,1.285]
[1736961369775,0.59757,3346.7,3346.6,1.285]
[1736961370171,4.51897,3346.7,3346.6,1.285]
[1736961370771,0.7332,3346.8,3346.6,1.285]
[1736961370979,0.7332,3346.8,3346.7,0.59757]
[1736961371175,0.59757,3346.7,3346.6,1.88258]
[1736961371573,1.33076,3346.8,3346.7,0.59757]
[1736961372066,0.7332,3346.8,3346.7,0.59757]
[1736961372373,1.33075,3346.8,3346.7,0.59757]
[1736961372577,0.7332,3346.8,3346.7,0.59757]
[1736961372775,3.9424,3347.1,3347.0,0.59752]
[1736961372976,0.7346,3347.1,3347.0,0.59752]
[1736961373784,0.59756,3346.8,3346.7,0.59757]
[1736961374080,0.59759,3346.6,3346.5,0.59759]
[1736961374375,1.28297,3346.7,3346.6,0.59759]
[1736961374767,1.28297,3346.7,3346.4,1.285]
[1736961374768,0.5976,3346.6,3346.5,0.59759]
[1736961374975,0.5976,3346.5,3346.4,1.88261]
[1736961375175,1.2977,3346.5,3346.4,1.88261]
[1736961375676,0.7001,3346.5,3346.4,1.88261]
[1736961375978,0.7001,3346.5,3346.4,0.59761]
[1736961376878,1.2977,3346.5,3346.3,1.88264]
[1736961377179,0.7001,3346.5,3346.1,0.59767]
[1736961377482,0.59766,3346.2,3346.1,1.88267]
[1736961377777,0.7001,3346.5,3346.1,1.285]
[1736961377985,0.59771,3346.0,3345.8,0.59772]
[1736961378185,1.357,3345.9,3345.8,0.59772]
[1736961380485,3.80546,3346.2,3346.0,0.59769]
[1736961380976,3.2078,3346.2,3345.6,6.75467333]
[1736961381284,3.2078,3346.2,3346.0,0.59768]
[1736961381482,3.80546,3346.2,3346.0,0.59768]
[1736961382385,0.59766,3346.2,3345.9,2.26187333]
[1736961382584,0.59766,3346.2,3346.0,0.59769]
[1736961383083,5.3073,3346.6,3345.9,2.26187333]
[1736961383288,0.59764,3346.4,3346.2,0.59765]
[1736961384082,4.5893,3346.6,3346.2,2.26187333]
[1736961384280,4.5893,3346.6,3346.5,0.5976]
[1736961385380,5.18689,3346.6,3346.5,0.5976]
[1736961385882,4.5893,3346.6,3346.5,0.5976]
[1736961387988,1.3815,3346.6,3346.5,0.5976]
[1736961388283,1.3815,3346.6,3346.3,42.085]
[1736961388485,0.59762,3346.5,3346.3,42.68263]
[1736961388789,0.59762,3346.5,3346.4,0.59762]
[1736961390684,0.59762,3346.5,3346.3,0.59763]
[1736961390685,0.5976,3346.5,3346.3,0.59763]
[1736961390883,0.5976,3346.5,3346.4,0.59762]
[1736961391282,0.59762,3346.4,3346.3,1.88264]
[1736961391487,1.31292,3346.4,3346.3,1.88264]
[1736961392591,0.7153,3346.4,3346.3,1.88264]
[1736961394597,1.49374,3347.2,3346.3,1.88264]
[1736961394598,3.2078,3347.5,3346.3,4.4928]
[1736961394895,2.1083,3347.2,3347.1,0.5975]
[1736961395090,0.6996,3347.2,3347.1,1.8805]
[1736961395390,3.2078,3347.5,3347.4,0.59744]
[1736961395585,0.59739,3347.7,3347.5,0.59742]
[1736961395788,2.00608,3347.8,3347.6,0.5974]
[1736961395989,0.5974,3347.7,3347.5,0.59742]
[1736961396690,1.4087,3347.8,3347.3,5.46967333]
[1736961396994,1.4087,3347.8,3347.7,0.59739]
[1736961397801,2.00607,3347.8,3347.7,0.59739]
[1736961398094,1.4087,3347.8,3347.7,0.59739]
[1736961398487,2.00607,3347.8,3347.7,0.59739]
[1736961399298,3.80513,3348.1,3348.0,0.59734]
[1736961400787,3.2078,3348.1,3348.0,0.59734]
[1736961401902,1.26777,3348.4,3348.3,0.59728]
[1736961402201,3.2078,3348.5,3348.4,0.59727]
[1736961402400,0.7106,3348.6,3348.5,0.59725]
[1736961402796,0.7106,3348.6,3348.5,1.88025]
[1736961403400,1.30783,3348.6,3348.5,1.283]
[1736961403601,2.02823,3348.6,3348.5,1.283]
[1736961403803,2.02823,3348.6,3348.5,1.88025]
[1736961404602,1.431,3348.6,3348.5,1.88025]
[1736961405909,0.59718,3348.9,3348.7,0.5972]
[1736961406097,0.59718,3348.9,3348.8,0.59719]
[1736961406298,1.3505,3349.2,3348.5,3.54487333]
[1736961406494,0.59715,3349.1,3349.0,0.59716]
[1736961406703,0.59717,3349.0,3348.8,0.59718]
[1736961406898,1.3505,3349.2,3348.6,2.16128]
[1736961407102,1.3505,3349.2,3348.8,2.26187333]
[1736961407401,0.59714,3349.1,3348.9,0.59718]
[1736961407603,0.59714,3349.1,3349.0,0.59716]
[1736961407800,1.3505,3349.2,3348.9,3.2078]
[1736961407994,1.3505,3349.2,3349.1,0.59714]
[1736961408210,1.3505,3349.2,3348.9,3.2078]
[1736961408506,1.3505,3349.2,3349.1,0.59714]
[1736961408703,0.7116,3349.7,3349.1,2.26187333]
[1736961408904,2.0715,3349.7,3349.6,0.59705]
[1736961410505,0.59699,3350.0,3349.4,2.26187333]
[1736961410708,0.59701,3349.9,3349.7,2.85890333]
[1736961411506,0.7116,3350.0,3349.7,2.26187333]
[1736961411813,1.30859,3350.0,3349.8,0.59702]
[1736961412011,0.59701,3349.9,3349.8,0.59701]
[1736961412199,0.59701,3349.9,3349.7,2.85890333]
[1736961412708,0.7116,3350.0,3349.7,2.26187333]
[1736961412908,0.7116,3350.0,3349.8,0.59701]
[1736961412909,1.30859,3350.0,3349.8,0.59701]
[1736961413408,0.7116,3350.0,3349.8,0.59701]
[1736961413609,0.59702,3349.8,3349.7,2.85890333]
[1736961413804,0.59701,3349.9,3349.7,0.59703]
[1736961414309,0.7116,3350.0,3349.5,0.7269]
[1736961414509,0.59702,3349.8,3349.6,0.59704]
[1736961415603,0.597,3349.9,3349.6,0.59704]
[1736961415799,0.7116,3350.0,3349.5,0.7269]
[1736961415800,0.59702,3349.8,3349.5,0.7269]
[1736961416003,0.59702,3349.8,3349.5,1.32396]
[1736961416203,0.59702,3349.8,3349.5,0.7269]
[1736961416404,0.59702,3349.8,3349.6,0.59705]
[1736961416599,0.7116,3350.0,3349.5,1.32396]
[1736961416805,0.59703,3349.7,3349.5,1.32396]
[1736961417005,0.59703,3349.7,3349.5,0.7269]
[1736961417207,0.7116,3350.0,3349.5,0.7269]
[1736961417415,0.59705,3349.7,3349.5,0.7269]
[1736961417608,0.59705,3349.7,3349.5,1.32397]
[1736961418810,0.7116,3350.0,3349.3,3.2078]
[1736961419019,0.59709,3349.4,3349.3,4.4898]
[1736961419416,3.80489,3349.4,3349.3,1.282]
[1736961419611,3.2078,3349.4,3348.7,2.26187333]
[1736961419812,0.6596,3349.3,3348.8,1.87919]
[1736961420013,0.59718,3348.9,3348.8,1.282]
[1736961420212,0.59717,3349.0,3348.8,1.87919]
[1736961420413,0.59717,3349.0,3348.8,1.87918]
[1736961420613,0.59718,3348.9,3348.8,1.282]
[1736961420814,1.28048,3348.9,3348.8,1.282]
[1736961421220,0.59719,3348.8,3348.7,43.06187333]
[1736961421415,0.59719,3348.8,3348.7,40.8]
[1736961421716,0.59719,3348.8,3348.4,2.26187333]
[1736961421717,0.59725,3348.5,3348.4,2.26187333]
[1736961422118,0.59725,3348.5,3348.4,44.34387333]
[1736961423813,0.59725,3348.5,3348.4,43.06187333]
[1736961424014,0.59724,3348.6,3348.4,44.94013333]
[1736961424209,0.7169,3348.8,3348.4,44.34287333]
[1736961424419,0.7169,3348.8,3348.7,0.59721]
[1736961424616,0.6833,3348.9,3348.8,0.59719]
[1736961425017,0.6833,3348.9,3348.7,0.5972]
[1736961425218,1.28048,3348.9,3348.5,1.281]
[1736961425410,1.28048,3348.9,3348.7,0.5972]
[1736961426120,0.59719,3348.8,3348.6,0.59722]
[1736961426313,0.6833,3348.9,3348.5,1.281]
[1736961426518,0.59725,3348.5,3348.4,42.081]
[1736961426927,0.59725,3348.5,3348.4,1.281]
[1736961427319,3.11865032,3348.8,3348.4,1.281]
[1736961427524,0.59724,3348.6,3348.4,1.87826]
[1736961427942,0.6833,3348.9,3348.4,1.281]
[1736961428226,0.59724,3348.6,3348.4,1.87825]
[1736961428426,0.59725,3348.6,3348.4,1.87825]
[1736961429528,3.8911,3348.9,3348.4,1.87825]
[1736961429726,0.59721,3348.8,3348.6,0.59722]
[1736961430030,0.59724,3348.6,3348.4,1.87826]
[1736961430528,0.59724,3348.6,3348.4,1.281]
[1736961430729,3.8911,3348.9,3348.4,1.281]
[1736961430929,0.59723,3348.7,3348.5,0.59724]
[1736961431128,0.59723,3348.7,3348.4,1.281]
[1736961431129,0.59724,3348.6,3348.4,1.87825]
[1736961431424,0.6752,3348.5,3348.4,1.87825]
[1736961434131,4.48828,3348.9,3348.8,0.59719]
[1736961434429,4.48828,3348.9,3348.8,41.39719]
[1736961434627,4.48828,3348.9,3348.8,40.8]
[1736961435126,4.48828,3348.9,3348.5,0.6703]
[1736961435331,4.48828,3348.9,3348.8,0.59719]
[1736961435530,0.5972,3348.8,3348.7,0.59721]
[1736961435930,3.8911,3348.9,3348.6,40.8]
[1736961436128,3.8911,3348.9,3348.8,0.59719]
[1736961436330,4.48828,3348.9,3348.8,0.59719]
[1736961436522,3.8911,3348.9,3348.8,0.59719]
[1736961436725,3.8911,3348.9,3348.7,0.59721]
[1736961437031,0.5972,3348.8,3348.7,0.59721]
[1736961437521,3.8911,3348.9,3348.5,40.8]
[1736961437721,3.8911,3348.9,3348.5,0.59723]
[1736961437931,3.8911,3348.9,3348.4,1.281]
[1736961438133,0.59725,3348.5,3348.4,1.87825]
[1736961438434,5.38407,3348.9,3348.5,0.59725]
[1736961438435,0.59724,3348.6,3348.5,0.59725]
[1736961438830,0.59725,3348.5,3348.4,1.281]
[1736961439032,0.6652,3348.5,3348.1,3.8866]
[1736961439228,0.6652,3348.5,3348.2,1.87829]
[1736961439229,0.59728,3348.3,3348.2,1.87829]
[1736961439631,0.59728,3348.3,3348.2,1.281]
[1736961439922,3.80508,3348.3,3348.2,1.281]
[1736961440121,6.31670603,3348.3,3347.5,3.2078]
[1736961440328,0.59741,3347.6,3347.5,3.2078]
[1736961440529,3.2078,3347.8,3347.3,4.68959335]
[1736961440729,0.59744,3347.4,3347.3,4.68959335]
[1736961441526,0.59744,3347.4,3346.9,1.281]
[1736961441527,0.59749,3347.2,3346.9,1.281]
[1736961441733,1.28761,3347.1,3346.9,1.281]
[1736961441933,0.6901,3347.1,3347.0,0.59752]
[1736961442126,0.6901,3347.1,3346.9,1.87852]
[1736961442629,0.6901,3347.1,3346.9,1.281]
[1736961443030,3.2078,3347.4,3346.9,1.281]
[1736961443232,3.80526,3347.4,3347.1,0.59749]
[1736961443835,3.2078,3347.4,3346.9,1.281]
[1736961444038,0.59751,3347.1,3346.9,1.87853]
[1736961444227,3.2078,3347.4,3346.9,1.281]
[1736961444535,0.5975,3347.2,3346.9,1.87852]
[1736961444737,3.2078,3347.4,3346.9,1.87852]
[1736961444936,0.59751,3347.1,3346.9,1.281]
[1736961445238,0.59754,3346.9,3346.7,0.59756]
[1736961445434,0.6649,3346.8,3346.7,0.59756]
[1736961446039,0.6649,3346.8,3346.6,1.87858]
[1736961446242,0.59757,3346.7,3346.6,1.281]
[1736961447033,0.6649,3346.8,3346.3,0.6846]
[1736961447234,0.59763,3346.4,3346.0,2.26187333]
[1736961447539,0.59765,3346.3,3346.0,0.59768]
[1736961448035,3.2078,3346.6,3345.9,1.281]
[1736961448242,1.26316,3346.2,3345.9,1.8787]
[1736961448439,0.59768,3346.1,3345.9,1.281]
[1736961448637,0.6655,3346.2,3346.0,0.59768]
[1736961449139,1.26316,3346.2,3345.9,1.8797]
[1736961449738,0.6655,3346.2,3346.0,0.59769]
[1736961449938,1.26316,3346.2,3346.0,0.59769]
[1736961450344,0.6655,3346.2,3346.0,0.59769]
[1736961450543,1.26316,3346.2,3346.0,0.59769]
[1736961450931,0.6655,3346.2,3346.0,0.59769]
[1736961451541,0.6655,3346.2,3345.9,1.282]
[1736961451846,1.26317,3346.2,3345.9,1.282]
[1736961452245,0.6655,3346.2,3346.0,40.8]
[1736961452549,0.6655,3346.2,3346.0,41.39768]
[1736961452742,0.6655,3346.2,3346.0,40.8]
[1736961452945,1.26317,3346.2,3346.0,40.8]
[1736961453145,0.59768,3346.1,3346.0,40.8]
[1736961454046,4.47097,3346.2,3346.0,40.8]
[1736961454247,0.59768,3346.1,3346.0,40.8]
[1736961454636,0.59768,3346.1,3345.9,0.59771]
[1736961455036,3.8733,3346.2,3346.0,40.8]
[1736961455240,3.65297333,3346.7,3346.0,43.06187333]
[1736961455241,3.9178,3346.6,3346.0,43.06187333]
[1736961455441,3.9178,3346.6,3346.4,0.59761]
[1736961455740,0.71,3346.6,3346.5,0.5976]
[1736961455941,3.2078,3347.2,3346.4,1.281]
[1736961456144,0.59752,3347.0,3346.9,0.59752]
[1736961456951,4.16141097,3347.1,3346.9,0.59752]
[1736961457140,0.71,3347.1,3347.0,0.59752]
[1736961457955,0.59753,3347.0,3346.9,0.59752]
[1736961458245,0.71,3347.1,3346.5,3.8825]
[1736961458454,0.59756,3346.8,3346.6,1.87858]
[1736961458846,0.59757,3346.7,3346.6,1.281]
[1736961459351,3.26309205,3347.0,3346.6,1.281]
[1736961459545,3.86061205,3347.0,3346.8,0.59754]
[1736961460049,0.71,3347.1,3347.0,0.59752]
[1736961460249,3.2078,3347.2,3347.1,0.5975]
[1736961461045,0.7152,3347.5,3347.4,0.59744]
[1736961462852,10.08297938,3347.6,3347.0,5.35796]
[1736961463150,3.2078,3347.6,3347.5,0.59743]
[1736961463348,0.7099,3348.0,3347.9,0.59735]
[1736961463652,0.7099,3348.0,3347.5,2.26187333]
[1736961463653,0.59729,3348.3,3348.1,0.59731]
[1736961463856,2.085,3348.5,3347.8,6.18117333]
[1736961464055,0.59729,3348.3,3348.1,0.59731]
[1736961464255,2.085,3348.5,3347.8,6.18117333]
[1736961464457,2.085,3348.5,3347.8,2.97337333]
[1736961465056,0.59727,3348.4,3348.1,0.59731]
[1736961465248,2.085,3348.5,3347.8,2.97337333]
[1736961465648,3.80508,3348.4,3348.2,0.59729]
[1736961466551,3.2078,3348.4,3347.8,2.97337333]
[1736961466748,3.2078,3348.4,3347.8,0.7115]
[1736961466952,0.5973,3348.2,3348.1,0.59731]
[1736961467853,3.2078,3348.4,3348.1,0.59731]
[1736961468055,0.59729,3348.3,3348.1,0.59731]
[1736961468643,0.59729,3348.3,3348.2,0.5973]
[1736961468853,0.59729,3348.3,3348.1,0.59731]
[1736961469360,0.59729,3348.3,3347.8,2.97337333]
[1736961469361,0.59731,3348.2,3348.0,0.59733]
[1736961469654,0.59731,3348.2,3347.8,0.7115]
[1736961469655,3.2078,3348.4,3348.1,0.59732]
[1736961469854,0.5973,3348.3,3348.1,0.59732]
[1736961470651,0.5973,3348.2,3348.0,0.59733]
[1736961470956,0.5973,3348.2,3348.1,0.59732]
[1736961471352,0.59732,3348.1,3348.0,0.59733]
[1736961471955,0.59732,3348.1,3347.9,0.59735]
[1736961472158,3.43188181,3348.3,3347.9,0.59735]
[1736961472357,0.59734,3348.0,3347.7,4.4878]
[1736961472555,0.5974,3347.7,3347.5,0.59741]
[1736961472853,0.7187,3347.9,3347.5,0.59741]
[1736961473046,0.6772,3347.6,3347.3,3.8827]
[1736961473251,0.59743,3347.5,3347.3,4.48015]
[1736961473558,0.6772,3347.6,3347.3,3.2078]
[1736961473559,0.59744,3347.4,3347.3,3.2078]
[1736961473862,0.59746,3347.3,3347.2,1.28]
[1736961474061,0.7187,3347.3,3347.2,1.87748]
[1736961474954,0.7187,3347.3,3347.2,0.59748]
[1736961478155,0.7187,3347.3,3346.8,1.27244]
[1736961478359,0.59754,3346.9,3346.6,0.59759]
[1736961478563,0.59759,3346.6,3346.5,3.2078]
[1736961478753,6.86387333,3346.8,3345.8,3.2078]
[1736961479059,6.86387333,3346.8,3346.0,0.59768]
[1736961479060,0.59766,3346.3,3346.0,0.59768]
[1736961479263,0.59767,3346.2,3345.9,1.28]
[1736961479458,0.6708,3346.5,3345.9,1.8777]
[1736961479658,0.6708,3346.5,3345.9,1.28]
[1736961479863,0.59767,3346.2,3346.0,0.59769]
[1736961480057,3.39743122,3346.4,3345.8,3.8751]
[1736961480360,3.2078,3346.3,3345.8,5.08551]
[1736961480565,0.59769,3346.1,3345.8,5.08551]
[1736961480764,0.5977,3346.0,3345.8,5.08551]
[1736961480966,4.05883655,3346.2,3346.0,0.59769]
[1736961481163,0.59768,3346.1,3345.9,0.5977]
[1736961481469,0.59769,3346.0,3345.8,3.80552]
[1736961481666,0.59769,3346.1,3345.9,0.59771]
[1736961482063,3.46116655,3346.2,3345.7,1.28]
[1736961482064,0.59767,3346.2,3346.0,0.59769]
[1736961482358,0.59767,3346.2,3345.7,1.28]
[1736961482571,0.59768,3346.1,3345.9,0.5977]
[1736961482766,2.93267333,3346.5,3345.8,1.28]
[1736961483064,3.27071614,3346.4,3345.8,1.28]
[1736961483264,0.59763,3346.4,3346.2,0.59765]
[1736961483464,0.6708,3346.5,3346.2,0.59765]
[1736961483465,1.26842,3346.5,3346.2,0.59765]
[1736961483964,1.26842,3346.5,3346.3,0.59763]
[1736961484171,0.6708,3346.5,3346.3,0.59763]
[1736961484469,0.59762,3346.4,3346.2,0.59765]
[1736961484665,0.6708,3346.5,3345.9,2.26187333]
[1736961484866,1.26841,3346.5,3346.3,0.59764]
[1736961485168,0.59762,3346.4,3346.2,0.59765]
[1736961485362,0.6708,3346.5,3345.9,2.26187333]
[1736961485569,1.26841,3346.5,3346.3,0.59763]
[1736961486476,1.26841,3346.5,3345.8,2.7743]
[1736961486477,1.3942,3346.8,3346.7,0.59757]
[1736961486665,0.7022,3346.8,3346.7,0.59757]
[1736961486971,3.2078,3347.1,3346.5,6.74867333]
[1736961487165,0.6971,3347.4,3347.2,0.59748]
[1736961487166,1.29455,3347.4,3347.2,0.59748]
[1736961487867,1.29456,3347.4,3347.1,0.59748]
[1736961488163,0.59746,3347.3,3346.8,43.06187333]
[1736961488369,0.59746,3347.3,3347.2,0.59748]
[1736961488566,1.29456,3347.4,3347.2,0.59748]
[1736961488771,0.6971,3347.4,3347.3,0.59746]
[1736961488968,3.2078,3347.5,3347.2,1.279]
[1736961489170,0.59738,3347.8,3347.6,0.5974]
[1736961489365,5.2348,3348.1,3347.4,2.26187333]
[1736961489566,0.59737,3347.9,3347.7,0.59738]
[1736961489767,2.027,3348.1,3347.4,2.26187333]
[1736961489964,2.027,3348.1,3348.0,0.59734]
[1736961490475,3.2078,3348.6,3347.9,3.2078]
[1736961490674,1.3701,3348.6,3347.8,2.26187333]
[1736961490876,1.3701,3348.6,3348.0,0.59733]
[1736961491179,0.59726,3348.5,3348.2,0.59729]
[1736961491376,0.59729,3348.3,3348.0,0.59732]
[1736961491570,0.59729,3348.3,3347.9,1.9735]
[1736961491872,3.2078,3348.5,3348.0,0.59734]
[1736961492076,0.5973,3348.2,3348.0,0.59734]
[1736961492473,3.2078,3348.5,3347.9,1.279]
[1736961492668,2.26187333,3348.4,3347.9,1.279]
[1736961492876,5.57517463,3348.4,3347.9,1.87635]
[1736961493080,0.59733,3348.1,3347.9,1.87635]
[1736961493578,0.59733,3348.1,3347.9,0.59735]
[1736961493784,0.59733,3348.1,3347.8,0.59736]
[1736961493979,0.59735,3348.0,3347.8,0.59736]
[1736961494978,5.57517463,3348.4,3347.7,1.279]
[1736961495277,0.59737,3347.8,3347.7,1.279]
[1736961495480,3.80514,3348.0,3347.7,1.87637]
[1736961495778,3.80514,3348.0,3347.8,0.59737]
[1736961495982,3.2078,3348.0,3347.5,3.2078]
[1736961496276,3.80514,3348.0,3347.8,0.59736]
[1736961496981,3.2078,3348.0,3347.9,0.59735]
[1736961497274,3.2078,3348.0,3347.6,1.279]
[1736961497487,3.2078,3348.0,3347.3,1.9735]
[1736961497665,3.2078,3348.0,3347.6,0.5974]
[1736961497666,0.59737,3347.8,3347.6,0.5974]
[1736961498085,1.4216,3347.9,3347.3,1.9735]
[1736961498577,1.4216,3347.9,3347.2,2.26187333]
[1736961498578,0.59746,3347.4,3347.2,1.87647]
[1736961499280,0.59746,3347.4,3347.1,1.279]